fUSD/lending_fUSD_20260401
["ID","MTS","AMOUNT","RATE_DAILY","PERIOD"]
[419269525,1775075525138,-540.12382876,0.00042186,2]
[419269526,1775075525148,-631.91042019,0.00042186,2]
[419269527,1775075525157,-300.02131867,0.00042186,2]
[419269528,1775075525167,-300.0,0.00042186,2]
[419269529,1775075525176,-1140.35876667,0.00042186,2]
[419269530,1775075525186,-300.0,0.00042186,2]
[419269531,1775075525195,-300.0,0.00042186,2]
[419269532,1775075525205,-309.0296419,0.00042186,2]
[419269533,1775075525215,-300.0,0.00042186,2]
[419269534,1775075525224,-300.0,0.00042186,2]
[419269535,1775075525234,-300.0,0.00042186,2]
[419269536,1775075525243,-449.16792546,0.00042186,2]
[419269537,1775075525253,-300.0,0.00042186,2]
[419269538,1775075525262,-300.0,0.00042186,2]
[419269539,1775075525271,-303.06686183,0.00042186,2]
[419269540,1775075525281,-300.0,0.00042186,2]
[419269541,1775075525290,-300.0,0.00042186,2]
[419269542,1775075525299,-300.0,0.00042186,2]
[419269543,1775075525309,-300.0,0.00042186,2]
[419269544,1775075525319,-417.89282887,0.00042186,2]
[419269545,1775075525328,-300.0,0.00042186,2]
[419269546,1775075525337,-300.0,0.00042186,2]
[419269547,1775075525347,-1088.17745011,0.00042186,2]
[419269548,1775075525356,-300.0,0.00042186,2]
[419269549,1775075525366,-300.0,0.00042186,2]
[419269550,1775075525375,-300.00000001,0.00042186,2]
[419269551,1775075525384,-300.0,0.00042186,2]
[419269552,1775075525394,-300.0,0.00042186,2]
[419269553,1775075525405,-300.0,0.00042186,2]
[419269554,1775075525414,-300.0,0.00042186,2]
[419269555,1775075525425,-301.3902486,0.00042186,2]
[419269556,1775075525435,-300.0,0.00042186,2]
[419269557,1775075525444,-300.0,0.00042186,2]
[419269558,1775075525454,-360.56081836,0.00042186,2]
[419269559,1775075525464,-300.0,0.00042186,2]
[419269560,1775075525473,-300.0,0.00042186,2]
[419269561,1775075525483,-300.0,0.00042186,2]
[419269562,1775075525492,-600.87455597,0.00042186,2]
[419269563,1775075525502,-300.0,0.00042186,2]
[419269564,1775075525511,-300.0,0.00042186,2]
[419269565,1775075525521,-300.0,0.00042186,2]
[419269566,1775075525531,-511.54454058,0.00042186,2]
[419269567,1775075525540,-300.0,0.00042186,2]
[419269568,1775075525550,-898.55637842,0.00042186,2]
[419269569,1775075525559,-1060.59968985,0.00042186,2]
[419269570,1775075525569,-540.12382875,0.00042186,2]
[419269571,1775075525578,-631.91042019,0.00042186,2]
[419269572,1775075525588,-300.0,0.00042186,2]
[419269573,1775075525597,-300.02131866,0.00042186,2]
[419269574,1775075525607,-300.0,0.00042186,2]
[419269575,1775075525616,-300.00000001,0.00042186,2]
[419269576,1775075525626,-1140.35876667,0.00042186,2]
[419269577,1775075525635,-307.7519343,0.00042186,2]
[419269578,1775075525645,-300.0,0.00042186,2]
[419269579,1775075525655,-300.0,0.00042186,2]
[419269580,1775075525664,-300.0,0.00042186,2]
[419269581,1775075525674,-300.0,0.00042186,2]
[419269582,1775075525684,-300.0,0.00042186,2]
[419269583,1775075525694,-309.02964192,0.00042186,2]
[419269584,1775075525704,-300.0,0.00042186,2]
[419269585,1775075525713,-300.0,0.00042186,2]
[419269586,1775075525724,-300.0,0.00042186,2]
[419269587,1775075525734,-449.16792545,0.00042186,2]
[419269588,1775075525743,-300.0,0.00042186,2]
[419269589,1775075525752,-300.0,0.00042186,2]
[419269590,1775075525762,-303.06686183,0.00042186,2]
[419269591,1775075525772,-300.0,0.00042186,2]
[419269592,1775075525781,-300.0,0.00042186,2]
[419269593,1775075525791,-521.57619441,0.00042186,2]
[419269594,1775075525800,-300.0,0.00042186,2]
[419269595,1775075525810,-300.0,0.00042186,2]
[419269596,1775075525820,-417.89282888,0.00042186,2]
[419269597,1775075525830,-300.0,0.00042186,2]
[419269598,1775075525839,-300.0,0.00042186,2]
[419269599,1775075525849,-300.0,0.00042186,2]
[419269600,1775075525858,-1088.17745011,0.00042186,2]
[419269601,1775075525868,-300.0,0.00042186,2]
[419269602,1775075525877,-300.0,0.00042186,2]
[419269603,1775075525887,-300.0,0.00042186,2]
[419269604,1775075525896,-300.00000001,0.00042186,2]
[419269605,1775075525906,-300.0,0.00042186,2]
[419269606,1775075525916,-300.0,0.00042186,2]
[419269607,1775075525926,-300.0,0.00042186,2]
[419269608,1775075525935,-300.0,0.00042186,2]
[419269609,1775075525945,-300.0,0.00042186,2]
[419269610,1775075525955,-300.0,0.00042186,2]
[419269611,1775075525965,-300.0,0.00042186,2]
[419269612,1775075525977,-301.3902486,0.00042186,2]
[419269613,1775075525987,-486.7094034,0.00042186,2]
[419269614,1775075525996,-300.0,0.00042186,2]
[419269615,1775075526005,-300.0,0.00042186,2]
[419269616,1775075526016,-300.0,0.00042186,2]
[419269617,1775075526026,-600.87455597,0.00042186,2]
[419269618,1775075526036,-300.0,0.00042186,2]
[419269619,1775075526045,-300.0,0.00042186,2]
[419269620,1775075526055,-511.54454058,0.00042186,2]
[419269621,1775075526065,-309.19227167,0.00042186,2]
[419269622,1775075526074,-300.0,0.00042186,2]
[419269623,1775075526084,-1060.59968985,0.00042186,2]
[419269624,1775075526093,-898.55637842,0.00042186,2]
[419269625,1775075526103,-540.12382875,0.00042186,2]
[419269626,1775075526112,-631.91042019,0.00042186,2]
[419269627,1775075526122,-300.0,0.00042186,2]
[419269628,1775075526132,-300.02131866,0.00042186,2]
[419269629,1775075526142,-300.0,0.00042186,2]
[419269630,1775075526151,-300.0,0.00042186,2]
[419269631,1775075526161,-300.0,0.00042186,2]
[419269632,1775075526171,-1140.35876667,0.00042186,2]
[419269633,1775075526180,-307.7519343,0.00042186,2]
[419269634,1775075526190,-300.0,0.00042186,2]
[419269635,1775075526200,-859.33439387,0.00042186,2]
[419269636,1775075526211,-300.0,0.00042186,2]
[419269637,1775075526221,-300.0,0.00042186,2]
[419269638,1775075526231,-300.0,0.00042186,2]
[419269639,1775075526241,-300.0,0.00042186,2]
[419269640,1775075526251,-309.0296419,0.00042186,2]
[419269641,1775075526260,-300.00000001,0.00042186,2]
[419269642,1775075526270,-300.0,0.00042186,2]
[419269643,1775075526280,-300.0,0.00042186,2]
[419269644,1775075526289,-300.0,0.00042186,2]
[419269645,1775075526299,-449.16792545,0.00042186,2]
[419269646,1775075526310,-300.0,0.00042186,2]
[419269647,1775075526320,-300.0,0.00042186,2]
[419269648,1775075526330,-303.06686183,0.00042186,2]
[419269649,1775075526339,-300.0,0.00042186,2]
[419269650,1775075526350,-300.0,0.00042186,2]
[419269651,1775075526361,-521.57619441,0.00042186,2]
[419269652,1775075526371,-300.0,0.00042186,2]
[419269653,1775075526380,-300.0,0.00042186,2]
[419269654,1775075526390,-417.89282889,0.00042186,2]
[419269655,1775075526400,-300.0,0.00042186,2]
[419269656,1775075526410,-300.0,0.00042186,2]
[419269657,1775075526420,-300.0,0.00042186,2]
[419269658,1775075526431,-300.0,0.00042186,2]
[419269659,1775075526441,-1088.17745011,0.00042186,2]
[419269660,1775075526452,-300.0,0.00042186,2]
[419269661,1775075526462,-300.0,0.00042186,2]
[419269662,1775075526472,-300.0,0.00042186,2]
[419269663,1775075526482,-300.00000002,0.00042186,2]
[419269664,1775075526491,-300.0,0.00042186,2]
[419269665,1775075526501,-300.0,0.00042186,2]
[419269666,1775075526511,-300.0,0.00042186,2]
[419269667,1775075526520,-300.0,0.00042186,2]
[419269668,1775075526530,-300.0,0.00042186,2]
[419269669,1775075526539,-300.0,0.00042186,2]
[419269670,1775075526549,-301.3902486,0.00042186,2]
[419269671,1775075526558,-300.0,0.00042186,2]
[419269672,1775075526897,-300.0,0.00042186,2]
[419269673,1775075526958,-300.0,0.00042186,2]
[419269674,1775075526968,-600.87455597,0.00042186,2]
[419269675,1775075526978,-300.0,0.00042186,2]
[419269676,1775075526988,-300.0,0.00042186,2]
[419269677,1775075526998,-300.0,0.00042186,2]
[419269678,1775075527009,-300.00000001,0.00042186,2]
[419269679,1775075527019,-511.54454058,0.00042186,2]
[419269680,1775075527029,-300.0,0.00042186,2]
[419269681,1775075527039,-1060.59968985,0.00042186,2]
[419269682,1775075527048,-898.55637842,0.00042186,2]
[419269683,1775075527058,-540.12382875,0.00042186,2]
[419269684,1775075527067,-631.91042019,0.00042186,2]
[419269685,1775075527078,-300.0,0.00042186,2]
[419269686,1775075527088,-300.0,0.00042186,2]
[419269687,1775075527098,-300.0,0.00042186,2]
[419269688,1775075527108,-300.02131866,0.00042186,2]
[419269689,1775075527118,-300.0,0.00042186,2]
[419269690,1775075527128,-1140.35876667,0.00042186,2]
[419269691,1775075527138,-307.7519343,0.00042186,2]
[419269692,1775075527148,-300.0,0.00042186,2]
[419269693,1775075527158,-859.33439387,0.00042186,2]
[419269694,1775075527167,-300.0,0.00042186,2]
[419269695,1775075527176,-300.0,0.00042186,2]
[419269696,1775075527186,-300.0,0.00042186,2]
[419269697,1775075527195,-300.0,0.00042186,2]
[419269698,1775075527205,-309.02964192,0.00042186,2]
[419269699,1775075527214,-300.0,0.00042186,2]
[419269700,1775075527224,-461.10385501,0.00042186,2]
[419269701,1775075527234,-300.0,0.00042186,2]
[419269702,1775075527243,-300.0,0.00042186,2]
[419269703,1775075527253,-300.0,0.00042186,2]
[419269704,1775075527262,-449.16792545,0.00042186,2]
[419269705,1775075527271,-300.0,0.00042186,2]
[419269706,1775075527281,-300.0,0.00042186,2]
[419269707,1775075527290,-303.06686183,0.00042186,2]
[419269708,1775075527300,-300.0,0.00042186,2]
[419269709,1775075527309,-300.0,0.00042186,2]
[419269710,1775075527318,-300.0,0.00042186,2]
[419269711,1775075527328,-521.57619441,0.00042186,2]
[419269712,1775075527337,-307.98682159,0.00042186,2]
[419269713,1775075527347,-300.0,0.00042186,2]
[419269714,1775075527356,-300.0,0.00042186,2]
[419269715,1775075527365,-300.0,0.00042186,2]
[419269716,1775075527375,-417.89282887,0.00042186,2]
[419269717,1775075527385,-300.0,0.00042186,2]
[419269718,1775075527396,-300.0,0.00042186,2]
[419269719,1775075527406,-300.0,0.00042186,2]
[419269720,1775075527416,-300.0,0.00042186,2]
[419269721,1775075527425,-1088.17745011,0.00042186,2]
[419269722,1775075527436,-300.0,0.00042186,2]
[419269723,1775075527447,-300.0,0.00042186,2]
[419269724,1775075527459,-300.0,0.00042186,2]
[419269725,1775075527470,-300.00000002,0.00042186,2]
[419269726,1775075527479,-300.0,0.00042186,2]
[419269727,1775075527489,-300.0,0.00042186,2]
[419269728,1775075527498,-300.0,0.00042186,2]
[419269729,1775075527508,-300.0,0.00042186,2]
[419269730,1775075527517,-300.0,0.00042186,2]
[419269731,1775075527527,-300.0,0.00042186,2]
[419269732,1775075527536,-301.3902486,0.00042186,2]
[419269733,1775075527546,-300.0,0.00042186,2]
[419269734,1775075527556,-300.0,0.00042186,2]
[419269735,1775075527566,-600.87455597,0.00042186,2]
[419269736,1775075527576,-300.0,0.00042186,2]
[419269737,1775075527586,-300.0,0.00042186,2]
[419269738,1775075527596,-300.0,0.00042186,2]
[419269739,1775075527606,-300.0,0.00042186,2]
[419269740,1775075527616,-300.0,0.00042186,2]
[419269741,1775075527626,-511.54454058,0.00042186,2]
[419269742,1775075527635,-300.0,0.00042186,2]
[419269743,1775075527645,-1060.59968985,0.00042186,2]
[419269744,1775075527655,-898.55637842,0.00042186,2]
[419269745,1775075527665,-663.82084038,0.00042186,2]
[419269746,1775075527674,-540.12382875,0.00042186,2]
[419269747,1775075527685,-300.0,0.00042186,2]
[419269748,1775075527694,-300.02131866,0.00042186,2]
[419269749,1775075527704,-300.0,0.00042186,2]
[419269750,1775075527713,-300.0,0.00042186,2]
[419269751,1775075527724,-300.0,0.00042186,2]
[419269752,1775075527733,-1140.35876667,0.00042186,2]
[419269753,1775075527743,-307.7519343,0.00042186,2]
[419269754,1775075527754,-300.0,0.00042186,2]
[419269755,1775075527764,-859.33439387,0.00042186,2]
[419269756,1775075527773,-300.0,0.00042186,2]
[419269757,1775075527783,-300.0,0.00042186,2]
[419269758,1775075527794,-300.0,0.00042186,2]
[419269759,1775075527805,-300.0,0.00042186,2]
[419269760,1775075527815,-309.0296419,0.00042186,2]
[419269761,1775075527826,-300.0,0.00042186,2]
[419269762,1775075527836,-461.10385501,0.00042186,2]
[419269763,1775075527845,-300.0,0.00042186,2]
[419269764,1775075527855,-167.07810611,0.00042189,14]
[419269765,1775075527864,-5800.0,0.00042189,14]
[419269766,1775075527874,-856.0,0.00042192,120]
[419269767,1775075527884,-350.0,0.00042192,10]
[419269768,1775075527893,-155.31745031,0.00042192,2]
[419269769,1775075527902,-1004.34,0.00042192,120]
[419269770,1775075527913,-1004.34,0.00042192,120]
[419269771,1775075527924,-5689.60863958,0.000422,2]
[419269772,1775075527935,-1000.0,0.000422,120]
[419269773,1775075527946,-565.91,0.000422,90]
[419269774,1775075527956,-542.22,0.000422,90]
[419269775,1775075527965,-803.08,0.000422,90]
[419269776,1775075527976,-500.0,0.00042204,95]
[419269777,1775075527986,-500.0,0.00042204,95]
[419269778,1775075527995,-500.0,0.00042204,95]
[419269779,1775075528007,-500.0,0.00042204,95]
[419269780,1775075528017,-500.0,0.00042204,95]
[419269781,1775075528027,-500.0,0.00042204,95]
[419269782,1775075528037,-500.0,0.00042204,95]
[419269783,1775075528047,-500.0,0.00042204,95]
[419269784,1775075528058,-500.0,0.00042204,95]
[419269785,1775075528068,-500.0,0.00042204,95]
[419269786,1775075528078,-500.0,0.00042204,95]
[419269787,1775075528089,-500.0,0.00042204,95]
[419269788,1775075528099,-500.0,0.00042204,95]
[419269789,1775075528109,-500.0,0.00042204,95]
[419269790,1775075528120,-500.0,0.00042204,95]
[419269791,1775075528129,-500.0,0.00042204,95]
[419269792,1775075528139,-500.0,0.00042204,95]
[419269793,1775075528149,-500.0,0.00042204,95]
[419269794,1775075528159,-500.0,0.00042204,95]
[419269795,1775075528168,-500.0,0.00042204,95]
[419269796,1775075528178,-492.62251011,0.00042204,95]
[419269797,1775075528189,-277.0,0.00042208,16]
[419269798,1775075528199,-401.14468318,0.00042241,2]
[419269799,1775075528209,-1040.24612514,0.00042261,120]
[419269800,1775075528218,-182.66,0.00042269,2]
[419269801,1775075528228,-200.0,0.00042279,120]
[419269802,1775075528238,-498.01,0.00042295,120]
[419269803,1775075528248,-5000.0,0.00042296,7]
[419269804,1775075528258,-1000.0,0.000423,120]
[419269805,1775075528267,-146191.0,0.000423,60]
[419269806,1775075528277,-5653.8813,0.00042323,2]
[419269807,1775075528287,-5653.8813,0.00042323,2]
[419269808,1775075528297,-868.24358161,0.000424,120]
[419269809,1775075528307,-4464.99193245,0.000424,120]
[419269810,1775075528316,-1000.0,0.000424,120]
[419269811,1775075528326,-36722.1691269,0.000424,3]
[419269812,1775075528335,-500.0,0.00042411,30]
[419269813,1775075528344,-500.0,0.00042465,120]
[419269814,1775075528353,-600.0,0.00042466,120]
[419269815,1775075528363,-600.0,0.00042466,120]
[419269816,1775075528373,-530.0,0.00042466,120]
[419269817,1775075528383,-856.0,0.00042466,120]
[419269818,1775075528393,-500.0,0.00042466,120]
[419269819,1775075528403,-250.0,0.00042466,120]
[419269820,1775075528413,-4000.0,0.00042466,120]
[419269821,1775075528423,-1004.34,0.00042466,120]
[419269822,1775075528433,-1004.34,0.00042466,120]
[419269823,1775075528442,-5653.8813,0.00042474,2]
[419269824,1775075528452,-5653.8813,0.00042474,2]
[419269825,1775075528462,-150.0,0.00042476,30]
[419269826,1775075528471,-1540.1814632,0.00042476,30]
[419269827,1775075528482,-150.0,0.00042476,30]
[419269828,1775075528491,-2803.55519372,0.00042476,30]
[419269829,1775075528501,-150.0,0.00042476,30]
[419269830,1775075528510,-17668.29358517,0.00042476,30]
[419269831,1775075528520,-300.0,0.00042486,2]
[419269832,1775075528530,-13425.45763652,0.000425,120]
[419269833,1775075528539,-612.14083194,0.000425,120]
[419269834,1775075528548,-3333.05570171,0.000425,30]
[419269835,1775075528558,-1761.00725527,0.000425,60]
[419269836,1775075528567,-381.85229208,0.000425,60]
[419269837,1775075528577,-30000.0,0.000425,91]
[419269838,1775075528587,-1000.0,0.000425,120]
[419269839,1775075528596,-368.3307,0.000425,90]
[419269840,1775075528606,-500.0,0.000425,120]
[419269841,1775075528615,-30520.08487996,0.000425,91]
[419269842,1775075528624,-30000.0,0.000425,65]
[419269843,1775075528634,-2500.0,0.000425,120]
[419269844,1775075528643,-10554.87,0.00042548,4]
[419269845,1775075528653,-156.99011647,0.00042586,2]
[419269846,1775075528662,-153.0,0.000426,120]
[419269847,1775075528671,-10000.0,0.000426,14]
[419269848,1775075528681,-1000.0,0.000426,120]
[419269849,1775075528690,-7506.831,0.000426,120]
[419269850,1775075528700,-216.349999,0.000426,18]
[419269851,1775075528709,-250.0,0.00042613,97]
[419269852,1775075528719,-5653.8813,0.00042624,2]
[419269853,1775075528729,-5653.8813,0.00042624,2]
[419269854,1775075528738,-250.0,0.00042625,2]
[419269855,1775075528748,-250.0,0.00042625,2]
[419269856,1775075528757,-250.0,0.00042625,2]
[419269857,1775075528767,-250.0,0.00042625,2]
[419269858,1775075528776,-250.0,0.00042625,2]
[419269859,1775075528786,-250.0,0.00042625,2]
[419269860,1775075528795,-250.0,0.00042625,2]
[419269861,1775075528805,-250.0,0.00042625,2]
[419269862,1775075528814,-250.0,0.00042625,2]
[419269863,1775075528823,-250.0,0.00042625,2]
[419269864,1775075528833,-250.0,0.00042625,2]
[419269865,1775075528843,-250.0,0.00042625,2]
[419269866,1775075528852,-250.0,0.00042625,2]
[419269867,1775075528861,-330.3230486,0.00042625,2]
[419269868,1775075528871,-4000.0,0.00042678,31]
[419269869,1775075528880,-500.0,0.00042685,30]
[419269870,1775075528890,-1000.0,0.000427,120]
[419269871,1775075528899,-1392.94,0.00042705,30]
[419269872,1775075528909,-288.83,0.00042715,90]
[419269873,1775075528920,-1096.6,0.00042719,30]
[419269874,1775075528930,-1000.0,0.00042739,120]
[419269875,1775075528940,-856.0,0.0004274,120]
[419269876,1775075528949,-4000.0,0.0004274,14]
[419269877,1775075528959,-450.0,0.0004274,10]
[419269878,1775075528968,-500.0,0.0004274,120]
[419269879,1775075528979,-500.0,0.0004274,120]
[419269880,1775075528988,-500.0,0.0004274,120]
[419269881,1775075528998,-500.0,0.0004274,120]
[419269882,1775075529007,-500.0,0.0004274,120]
[419269883,1775075529017,-500.0,0.0004274,120]
[419269884,1775075529026,-500.0,0.0004274,120]
[419269885,1775075529035,-500.0,0.0004274,120]
[419269886,1775075529045,-500.0,0.0004274,120]
[419269887,1775075529054,-500.0,0.0004274,120]
[419269888,1775075529064,-500.0,0.0004274,120]
[419269889,1775075529073,-500.0,0.0004274,120]
[419269890,1775075529083,-500.0,0.0004274,120]
[419269891,1775075529092,-500.0,0.0004274,120]
[419269892,1775075529102,-610.72934933,0.0004274,120]
[419269893,1775075529111,-1004.34,0.0004274,120]
[419269894,1775075529120,-1004.34,0.0004274,120]
[419269895,1775075529129,-640704.26665819,0.00042767,30]
[419269896,1775075529139,-5653.8813,0.00042775,2]
[419269897,1775075529149,-5653.8813,0.00042775,2]
[419269898,1775075529158,-300.0,0.00042786,2]
[419269899,1775075529167,-1718.54,0.000428,120]
[419269900,1775075529177,-151.0,0.00042808,93]
[419269901,1775075529186,-1179.20571629,0.00042818,120]
[419269902,1775075529196,-1571.0,0.00042848,16]
[419269903,1775075529205,-449.1243405,0.00042853,2]
[419269904,1775075529214,-205.74,0.00042858,120]
[419269905,1775075529225,-177.16,0.00042858,120]
[419269906,1775075529234,-2299.25,0.00042858,120]
[419269907,1775075529243,-795.13,0.00042858,120]
[419269908,1775075529253,-282.56,0.00042858,120]
[419269909,1775075529262,-399.1,0.00042858,120]
[419269910,1775075529271,-156.99011647,0.0004286,2]
[419269911,1775075529281,-2243.77935778,0.0004287,5]
[419269912,1775075529291,-10000.0,0.00042875,60]
[419269913,1775075529401,-10000.0,0.00042875,60]
[419269914,1775075529411,-10000.0,0.00042875,60]
[419269915,1775075529421,-10000.0,0.00042875,60]
[419269916,1775075529431,-10000.0,0.00042875,60]
[419269917,1775075529440,-10000.0,0.00042875,60]
[419269918,1775075529451,-10000.0,0.00042875,60]
[419269919,1775075529460,-10000.0,0.00042875,60]
[419269920,1775075529470,-10000.0,0.00042875,60]
[419269921,1775075529479,-10000.0,0.00042875,60]
[419269922,1775075529488,-10000.0,0.00042875,60]
[419269923,1775075529497,-10000.0,0.00042875,60]
[419269924,1775075529507,-10000.0,0.00042875,60]
[419269925,1775075529516,-10000.0,0.00042875,60]
[419269926,1775075529526,-10000.0,0.00042875,60]
[419269927,1775075529537,-10000.0,0.00042875,60]
[419269928,1775075529547,-10000.0,0.00042875,60]
[419269929,1775075529556,-10000.0,0.00042875,60]
[419269930,1775075529565,-10000.0,0.00042875,60]
[419269931,1775075529574,-10000.0,0.00042875,60]
[419269932,1775075529584,-10000.0,0.00042875,60]
[419269933,1775075529593,-10000.0,0.00042875,60]
[419269934,1775075529602,-10000.0,0.00042875,60]
[419269935,1775075529611,-10000.0,0.00042875,60]
[419269936,1775075529620,-10000.0,0.00042875,60]
[419269937,1775075529630,-10000.0,0.00042875,60]
[419269938,1775075529639,-10000.0,0.00042875,60]
[419269939,1775075529649,-10000.0,0.00042875,60]
[419269940,1775075529658,-10000.0,0.00042875,60]
[419269941,1775075529667,-10000.0,0.00042875,60]
[419269942,1775075529677,-10000.0,0.00042875,60]
[419269943,1775075529686,-10000.0,0.00042875,60]
[419269944,1775075529696,-10000.0,0.00042875,60]
[419269945,1775075529706,-10000.0,0.00042875,60]
[419269946,1775075529715,-5000.0,0.00042875,60]
[419269947,1775075529725,-170500.49406494,0.0004288,60]
[419269948,1775075529734,-127077.23628671,0.0004288,30]
[419269949,1775075529744,-151.0,0.00042885,60]
[419269950,1775075529753,-184.21400124,0.00042887,30]
[419269951,1775075529762,-2897.0,0.00042898,40]
[419269952,1775075529772,-58946.32371734,0.000429,120]
[419269953,1775075529781,-634.11751211,0.000429,120]
[419269954,1775075529790,-100000.0,0.000429,120]
[419269955,1775075529799,-151.0,0.000429,30]
[419269956,1775075529809,-151.0,0.000429,30]
[419269957,1775075529818,-335684.2915719,0.000429,30]
[419269958,1775075529827,-1263.0,0.00042904,2]
[419269959,1775075529836,-1216.0,0.00042904,2]
[419269960,1775075529846,-925.0,0.00042904,2]
[419269961,1775075529855,-151.0,0.00042909,30]
[419269962,1775075529864,-151.0,0.00042909,60]
[419269963,1775075529873,-1115.157653,0.00042909,30]
[419269964,1775075529882,-2500.0,0.00042913,30]
[419269965,1775075529892,-5653.8813,0.00042926,2]
[419269966,1775075529901,-5653.8813,0.00042926,2]
[419269967,1775075529910,-250.0,0.00042948,101]
[419269968,1775075529919,-243.0,0.0004295,30]
[419269969,1775075529928,-500.0,0.00042959,30]
[419269970,1775075529938,-400.0,0.0004297,3]
[419269971,1775075529948,-380.0,0.00042982,2]
[419269972,1775075529958,-150.0,0.00042986,120]
[419269973,1775075529969,-269.12562034,0.00042986,120]
[419269974,1775075529978,-300.0,0.00042986,2]
[419269975,1775075529987,-151.0,0.00042989,60]
[419269976,1775075529996,-656.37046476,0.0004299,60]
[419269977,1775075530005,-151.0,0.00042998,30]
[419269978,1775075530014,-151.0,0.00042998,64]
[419269979,1775075530023,-151.0,0.00042998,70]
[419269980,1775075530032,-151.0,0.00042998,93]
[419269981,1775075530041,-1075.369,0.00042998,30]
[419269982,1775075530050,-253.52176029,0.00042998,30]
[419269983,1775075530059,-500.0,0.00042998,30]
[419269984,1775075530069,-500.0,0.00042998,64]
[419269985,1775075530079,-500.0,0.00042998,70]
[419269986,1775075530089,-500.0,0.00042998,93]
[419269987,1775075530099,-200.0,0.00042999,30]
[419269988,1775075530109,-200.0,0.00042999,30]
[419269989,1775075530119,-500.0,0.00042999,30]
[419269990,1775075530129,-187.78006525,0.00042999,30]
[419269991,1775075530139,-8565.75555911,0.00042999,30]
[419269992,1775075530149,-1280.88388878,0.00042999,30]
[419269993,1775075530159,-200.0,0.00042999,60]
[419269994,1775075530169,-200.0,0.00042999,60]
[419269995,1775075530180,-500.0,0.00042999,60]
[419269996,1775075530189,-194.72792766,0.00042999,60]
[419269997,1775075530198,-500.0,0.00042999,30]
[419269998,1775075530208,-8882.6885148,0.00042999,60]
[419269999,1775075530217,-1328.27659266,0.00042999,60]
[419270000,1775075530228,-226.46120389,0.00042999,64]
[419270001,1775075530237,-500.0,0.00042999,60]
[419270002,1775075530246,-151.0,0.00042999,30]
[419270003,1775075530255,-151.0,0.00042999,60]
[419270004,1775075530266,-151.0,0.00042999,64]
[419270005,1775075530275,-151.0,0.00042999,70]
[419270006,1775075530286,-500.0,0.00042999,30]
[419270007,1775075530295,-151.0,0.00042999,120]
[419270008,1775075530305,-500.0,0.00042999,30]
[419270009,1775075530314,-151.0,0.00042999,30]
[419270010,1775075530323,-500.0,0.00042999,60]
[419270011,1775075530333,-500.0,0.00042999,60]
[419270012,1775075530342,-151.0,0.00042999,60]
[419270013,1775075530351,-500.0,0.00042999,30]
[419270014,1775075530360,-500.0,0.00042999,60]
[419270015,1775075530370,-500.0,0.00042999,30]
[419270016,1775075530379,-151.0,0.00042999,30]
[419270017,1775075530388,-500.0,0.00042999,60]
[419270018,1775075530397,-250.0,0.00042999,30]
[419270019,1775075530406,-250.0,0.00042999,60]
[419270020,1775075530416,-1037.0,0.00042999,30]
[419270021,1775075530425,-2278.88697738,0.00042999,30]
[419270022,1775075530434,-200.0,0.00042999,30]
[419270023,1775075530443,-151.0,0.00042999,30]
[419270024,1775075530452,-200.0,0.00042999,60]